Cogmind - Beta 14 @@@ ROGUE MODE // 2024.09.08 @ 12:55:41 Player: Null_error Result: Destroyed by D-53 Grenadier with Mini Grenade Launcher Performance ------------- Evolutions (0) 0 Regions Visited (2) 400 Robots Destroyed (6) 30 Value Destroyed (57) 57 Prototype IDs (1) 20 Alien Tech Used (0) 0 Bonus (0) 0 TOTAL SCORE: 507 Bonus ------- None Cogmind --------- Core Integrity 0/250 Matter 274/300 Energy 238/265 System Corruption 0% Temperature Cool (0) Movement Flying (597) Ox7 Location -10/Mines Parts ------- > --- POWER (1) -------- Improved Ion Engine > --- PROPULSION (2) --- Flight Unit Flight Unit > --- UTILITY (2) ------ High-capacity Storage Unit Sensor Drone Bay (6/20) > --- WEAPON (2) ------- (None) > --- INVENTORY (20) --- Ion Engine Light Ion Engine Light Ion Engine Light Ion Engine Aluminum Leg Aluminum Leg Wheel Wheel Flight Unit Flight Unit Heat Sink Small Storage Unit Medium Matter Pod (76) Medium Matter Pod (0) Medium Matter Pod (0) Terrain Scanner Seismic Detector Core Shielding Assault Rifle Peak State ------------ > --- POWER ------------ Improved Ion Engine > --- PROPULSION ------- Wheel Compact Wheel > --- UTILITY ---------- High-capacity Storage Unit Sensor Drone Bay > --- WEAPON ----------- EM Pulse Gun Light Assault Rifle > --- INVENTORY -------- Ion Engine Light Ion Engine Light Ion Engine Light Ion Engine Aluminum Leg Aluminum Leg Wheel Flight Unit Flight Unit Flight Unit Flight Unit Heat Sink Small Storage Unit Medium Matter Pod Medium Matter Pod Medium Matter Pod Terrain Scanner Seismic Detector Core Shielding Assault Rifle [Rating: 17] Favorites ----------- Power Ion Engine Engine Ion Engine Propulsion Wheel Wheel Wheel Flight Unit Flight Unit Utility High-capacity Storage Unit Device Sensor Drone Bay Storage High-capacity Storage Unit Processor Visual Processing Unit Weapon EM Pulse Gun Energy Gun EM Pulse Gun Ballistic Gun Light Assault Rifle Build | -11 -10 -10 ------- Run | Yrd Mat Min Slots Evolved . | . . . Power . | . . . Propulsion . | . . . Utility . | . . . Weapon . | . . . Parts Attached 14 | 6 2 6 Power 3 | 1 . 2 Engine 3 | 1 . 2 Core . | . . . Reactor . | . . . Propulsion 4 | 2 . 2 Treads . | . . . Leg . | . . . Wheel 2 | 2 . . Hover . | . . . Flight 2 | . . 2 Utility 4 | 1 2 1 Device 1 | . . 1 Storage 2 | 1 1 . Processor 1 | . 1 . Hackware . | . . . Protection . | . . . Artifact . | . . . Weapon 3 | 2 . 1 Energy Gun 1 | 1 . . Energy Cannon . | . . . Ballistic Gun 2 | 1 . 1 Ballistic Cannon . | . . . Launcher . | . . . Special Weapon . | . . . Impact Weapon . | . . . Slashing Weapon . | . . . Piercing Weapon . | . . . Special Melee Weapon . | . . . Unidentified Prototypes 1 | . . 1 Parts Lost 3 | . . 3 Power . | . . . Propulsion 1 | . . 1 Utility . | . . . Weapon 2 | . . 2 Highest Loss Streak 3 | . . 3 To Critical Strikes . | . . . Average Slot Usage (%) 98 | . 96 99 Engine 14 | . 14 14 Wheel 27 | . 28 27 Device 1 | . . 2 Storage 14 | . 14 14 Processor 11 | . 10 11 Energy Gun 13 | . 14 13 Ballistic Gun 14 | . 14 14 Peak Build Rating 17 | 6 9 17 Average Rating 9 | 4 7 10 On Entrance 5 | . 6 9 Naked Turns . | . . . Heaviest Build 64 | 14 49 64 Greatest Support 26 | 26 26 26 Greatest Overweight (x) 6 | 1 1 6 Average Overweight (x) . | . . 1 Largest Inventory Capacity 20 | 8 20 20 Average Capacity 18 | 7 16 20 Most Carried 20 | 4 11 20 Average Carried 13 | 2 6 16 Final Capacity 20 | 8 20 20 Final Carried 19 | 4 11 19 Class Distribution -------------------- 100% | Mutant Dominant Class ---------------- Mutant | -10/Materials Mutant | -10/Mines Resources | -11 -10 -10 ----------- Run | Yrd Mat Min Matter Collected 396 | 266 29 101 Remotely . | . . . Salvage Created 164 | 63 51 50 Parts 15 | 1 5 9 Haulers Intercepted . | . . . Recyclers Shooed . | . . . Parts Field Recycled . | . . . Retrieved Matter . | . . . Parts Self-Destructed . | . . . Prevented . | . . . Kills | -11 -10 -10 ------- Run | Yrd Mat Min Combat Hostiles Destroyed 3 | . . 3 Guns 3 | . . 3 Classes Destroyed 4 | 1 2 1 Builder 1 | . 1 . Recycler 1 | 1 . . Watcher 1 | . 1 . Swarmer 3 | . . 3 Best Kill Streak 3 | 1 1 3 Combat Bots Only 3 | . . 3 Max Kills in Single Turn 1 | 1 1 1 Gunslinging . | . . . Exploded . | . . . Melee . | . . . Uniques/NPCs Destroyed . | . . . Combat | -11 -10 -10 -------- Run | Yrd Mat Min Hostile Shots Fired 25 | . . 25 Missed 8 | . . 8 Damage Taken 742 | 39 . 703 Core 263 | . . 263 Absorbed by Shields . | . . . Core Remaining (%) 100 | 100 . . Volleys Fired 10 | 2 3 5 Largest 2 | 2 2 2 Hottest 60 | 60 60 60 Shots Fired 20 | 4 6 10 Gun 20 | 4 6 10 Cannon . | . . . Launcher . | . . . Special . | . . . Kinetic 10 | 2 3 5 Thermal . | . . . Explosive . | . . . Electromagnetic 10 | 2 3 5 Robot Hit Streak 5 | 3 5 3 Robot Miss Streak 3 | 1 . 3 Penetration Max . | . . . Secondary Targets . | . . . Shots Hit Robots 12 | 3 5 4 Core Hits 7 | 1 2 4 Critical Kills . | . . . Critical Parts Destroyed . | . . . Critical Strikes . | . . . Melee Attacks . | . . . Impact . | . . . Slashing . | . . . Piercing . | . . . Sneak Attacks . | . . . Combat Hostiles . | . . . Follow-up Attacks . | . . . Damage Inflicted 204 | 76 75 53 Guns 155 | 41 75 39 Cannons . | . . . Explosions 35 | 35 . . Melee . | . . . Ramming 14 | . . 14 Kinetic 53 | 13 24 16 Thermal 35 | 35 . . Explosive . | . . . Electromagnetic 102 | 28 51 23 Impact . | . . . Slashing . | . . . Piercing . | . . . Highest Corruption . | . . . Average Corruption . | . . . Corruption Purged . | . . . Corruption Blocked . | . . . Overload Shots . | . . . Overflow Damage . | . . . Projectiles . | . . . Explosions . | . . . Melee . | . . . Knockbacks . | . . . Impact . | . . . Kinetic . | . . . Secondary . | . . . Self-Inflicted Damage 46 | 39 . 7 Shots 1 | 1 . . Rammed 2 | . . 2 Targets Rammed 2 | . . 2 Kicked . | . . . Crushed . | . . . Highest Temperature 20 | 12 . 20 Average Temperature 13 | 12 . 15 Received Heat Transfer 9 | . . 9 Siege Activations . | . . . Robots Corrupted . | . . . Combat Hostiles . | . . . Parts Fried 2 | 1 1 . Impact Corruptions . | . . . Robots Melted . | . . . Combat Hostiles . | . . . Parts Melted . | . . . Heat Transferred 50 | 50 . . Parts Sabotaged . | . . . Parts Stolen . | . . . Parts Stripped . | . . . Power Chain Reactions 1 | 1 . . Alert | -11 -10 -10 ------- Run | Yrd Mat Min Peak Influence 96 | 5 30 96 Initial 11 | . 3 11 Average 42 | . 24 53 Maximum Alert Level . | . . . Low Security (%) 100 | 100 100 100 Level 1 . | . . . Level 2 . | . . . Level 3 . | . . . Level 4 . | . . . Level 5 . | . . . High Security . | . . . Max Security . | . . . Squads Dispatched . | . . . Investigation . | . . . Extermination . | . . . Reinforcement . | . . . Assault . | . . . Garrison . | . . . Intercept . | . . . Searches Triggered . | . . . Construction Impeded . | . . . Haulers Reinforced . | . . . Active Scanning Responses . | . . . Cargo Convoy Interrupts . | . . . Stealth | -11 -10 -10 --------- Run | Yrd Mat Min Distress Signals . | . . . Communications Jammed . | . . . Distress Signals . | . . . Times Spotted 27 | . 1 26 Peak Tracking Total 18 | . 1 18 Tactical Retreats 1 | . . 1 Traps | -11 -10 -10 ------- Run | Yrd Mat Min Traps Triggered . | . . . Indirectly . | . . . Trap Hack Attempts . | . . . Triggered . | . . . Disarmed . | . . . Reprogrammed . | . . . Reused . | . . . Traps Extracted . | . . . Installed . | . . . Triggered . | . . . Machines | -11 -10 -10 ---------- Run | Yrd Mat Min Machines Disabled 1 | . . 1 Max in Single Turn 1 | . . 1 Machines Repaired . | . . . Machines Dismantled . | . . . Machines Sabotaged . | . . . Overloaded Fab Kills . | . . . Hacking | -11 -10 -10 --------- Run | Yrd Mat Min Machines Accessed 1 | . . 1 Terminals . | . . . Fabricators . | . . . Repair Stations . | . . . Recycling Units . | . . . Scanalyzers . | . . . Garrison Access . | . . . Total Hacks 1 | . . 1 Successful 1 | . . 1 Failed . | . . . Catastrophic . | . . . Database Lockouts . | . . . Manual . | . . . Terminals . | . . . Fabricators . | . . . Repair Stations . | . . . Recycling Units . | . . . Scanalyzers . | . . . Garrison Access . | . . . Terminal Hacks 1 | . . 1 Open Door 1 | . . 1 Fabricator Hacks . | . . . Repair Station Hacks . | . . . Recycling Unit Hacks . | . . . Scanalyzer . | . . . Garrison Access Hacks . | . . . Unauthorized Hacks . | . . . Terminals . | . . . Fabricators . | . . . Repair Stations . | . . . Recycling Units . | . . . Scanalyzers . | . . . Garrison Access . | . . . Data Cores Recovered . | . . . Used . | . . . Hacking Detections . | . . . Full Trace Events . | . . . Feedback Events . | . . . Feedback Blocked . | . . . Robot Schematics Acquired . | . . . Robots Built . | . . . Authchips . | . . . Time . | . . . Total Robot Build Rating . | . . . Part Schematics Acquired . | . . . Parts Built . | . . . Authchips . | . . . Time . | . . . Total Part Build Rating . | . . . Parts Repaired . | . . . Time . | . . . Parts Recycled . | . . . Recycled Matter . | . . . Retrieved Matter . | . . . Retrieved Components . | . . . Parts Scanalyzed . | . . . Part Schematics Acquired . | . . . Parts Damaged . | . . . Bothacking | -11 -10 -10 ------------ Run | Yrd Mat Min Used RIF Installer . | . . . Robots Hacked . | . . . Non-combat . | . . . Combat . | . . . Robot Hacks Applied . | . . . Relay Couplers Released . | . . . Fabnet Peak Effective % . | . . . Robots Rewired . | . . . Allies Hacked . | . . . Hacks Repelled . | . . . Allies | -11 -10 -10 -------- Run | Yrd Mat Min Total Allies . | . . . Largest Group . | . . . Highest-Rated Group . | . . . Highest-Rated Ally . | . . . Total Orders . | . . . Ally Attacks . | . . . Total Damage . | . . . Kills . | . . . Allies Corrupted 1 | . . 1 Allies Melted . | . . . Intel | -11 -10 -10 ------- Run | Yrd Mat Min Robot Analysis Total . | . . . Derelict Logs Recovered 1 | . . 1 Drone Launches 20 | . . 20 Drone Recoveries 6 | . . 6 Exploration | -11 -10 -10 ------------- Run | Yrd Mat Min Turns Passed 707 | 60 159 488 Spaces Moved 589 | 48 142 399 Core 3 | 3 . . Treads . | . . . Legs . | . . . Wheels 586 | 45 142 399 Hover . | . . . Flight . | . . . Fastest Speed 50 | 50 90 105 Average Speed 104 | 87 99 108 Slowest Speed 170 | 95 105 170 Overloaded Moves . | . . . Propulsion Burnouts . | . . . Robots Hopped . | . . . Cave-ins Triggered . | . . . Exploration Rate (%) 29 | 4 17 66 Regions Visited 2 Branch Regions 1 Pre-discovered Areas . | . . . Known Exits Taken . | . . . Unknown Exits Taken 2 | 1 1 . Scrap Searched 1 | . . 1 Spaces Dug . | . . . Terrain Destroyed . | . . . Melee . | . . . Projectile . | . . . AOE . | . . . Terrain Rammed . | . . . Walls Destroyed . | . . . Machines Disabled . | . . . Actions | -11 -10 -10 --------- Run | Yrd Mat Min Total 655 | 59 152 444 Wait 24 | . . 24 Move 587 | 47 141 399 Hop . | . . . Pick Up 18 | 4 6 8 Fast Attach 7 | 6 1 . Attach 1 | . . 1 Detach . | . . . Swap 6 | . 1 5 Drop . | . . . Fire 10 | 2 3 5 Melee . | . . . Ram 2 | . . 2 Kick . | . . . Crush . | . . . Escape Stasis . | . . . Rewire . | . . . Trap . | . . . Miscellaneous . | . . . Route ------- -11/Scrapyard -10/Materials -10/Mines (discovered 1 exit: [*Mat]) History --------- Turn | Location | Event 18 | -11/Scrapyard | Discovered new exit (range 15) 61 | -11/Scrapyard | Entered Materials 91 | -10/Materials | Discovered new exit (range 14) 220 | -10/Materials | Entered Mines 301 | -10/Mines | Build established: Mutant 309 | -10/Mines | Learned 8 Materials zone layouts 502 | -10/Mines | Discovered new exit (range 10) 550 | -10/Mines | Joined a pair of Derelicts in attacking an 0b10 outpost 617 | -10/Mines | Found the Drone Emporium 623 | -10/Mines | Found Prototype Device 623 | -10/Mines | Identified Sensor Drone Bay 662 | -10/Mines | Assembled infested the area 667 | -10/Mines | Assisted by a Guerilla fighting off Assembled 703 | -10/Mines | Core integrity fell below 50% 707 | -10/Mines | Core integrity fell below 20% 708 | -10/Mines | Destroyed by D-53 Grenadier with Mini Grenade Launcher Last Messages --------------- 00692_ EM Pulse Gun destroyed. 00692_ Sensor Drone destroyed. 00694_ K-01 Serf collects debris. 00694_ Sensor Drone destroyed. 00695_ Sensor Drone retrieved by Sensor Drone Bay. 00695_ Sensor Drone destroyed. 00695_ K-01 Serf destroyed. 00695_ Sensor Drone destroyed. 00696_ Machine disabled. 00697_ Sensor Drone destroyed. 00697_ as-12002 destroyed. 00698_ The unstable cave ceiling collapses. 00698_ Com. Wheel destroyed. 00698_ K-01 Serf collects debris. 00700_ The unstable cave ceiling collapses. 00702_ Sensor Drone destroyed. 00702_ Seismic Survey Station disabled. 00703_ The unstable cave ceiling collapses. 00704_ Lgt. Assault Rifle destroyed. 00706_ The unstable cave ceiling collapses. Map ----- +----------------------------------------------------+ | ### ## ## #### "#????? | | # #?# ## ### ###???# ##?????? | | ""## ## ### ##?# ####### ##??????? | | ##### ## #?## ####??# ##???????? | | ????## ### #??####?????#%### ### ###????????? | | ?????## #?# #???????????# #?? #?????##??????????? | | ??????# #?# #?????????### #???#??#??????????????? | | ??????# #?# #?????????# #?????? ??????????????? | | ??????# ? #?????????# ###?????? ??????????????? | | ??????###?# ?????????# #???????? #?????????????? | | ?????????# ######### ######??# #?????????????? | | ????????# a #### #?????????????? | | ????????# ######### # # #?????????????? | | ?????????? ?????????## a# # #?????????????? | | ??######## ##?????????# #?????????????? | | ??# ###???????????## # # #?????????????? | | ??# #????????????## #?????????????? | | ??# #????????????#" #?????????????? | | ??# #????????????#! d #####?????????? | | ??# """ #####????????#! # ????????? | | ??# """ [#???????## d r #???????? | | ??# """ [### #???????# #???????? | | ??########?# #?####### # # #???????? | | ???????????# #?# = % #???????? | | ???????????#*### # ==% #### #??? | | ???????????# @ # ! #??? | | ???????????# """ ## #??? | | ???????????##### """ ### ########??? | | ???????????????# """ ##?## ## #########?? | | ???????????????# ###???#####% | | ???????????????# #?????????# #########?? | | ???????????????### #############?????# ###???????? | | ????#???########## ######## ##????# #???????? | | ????# ### ##[ #????### #???????? | | ?????# ! #??????# #???????? | | ?????# ####### ## ! ! #??##### ######## | | ?????# ## #?????# ###= ## ##??# | | ????????# #?????# #### #######???# ########## | | ????????# #?????# #####?????????# #??????????? | | ???????## #??###### #???####??????# #??????????? | | ??????## #### ### ##?## ##?????# #??????????? | | ?????## ## ## ### #?????# #??????????? | | ???### #?????# #??????????? | | ??## #????## ##?????????? | | ?## ##### #????# #?????????? | | ?# """ ####??## #????# #?????????? | | ?# """ ##????## ##????# < #?????????? | | ?## """ #????## ##????# #?????????? | | ??# ## #????# #????# #?????????? | | ??# ### ##????# #????## ##?????????? | +----------------------------------------------------+ Best States ------------- Heat Dissipation 25 Energy Generation 12 Energy Capacity 265 Matter Stores 300 Matter Capacity 300 Sight Range 18 Terrain Scan Density 10 Evasion (%) 44 Item Schematics ----------------- None Robot Schematics ------------------ None Fabricated ------------ Nothing Alien Tech Used ----------------- None Achievements -------------- Release The Drones! Challenges ------------ None Game ------ Seed JunkMakeshiftHammer Manual? 0 Play Time 00:10:42 Cumulative 27.1 hours Start 2024.09.08 @ 12:17:26 End 2024.09.08 @ 12:55:41 Sessions 1 Manual Loads 0 Difficulty Rogue Special Mode None Game No. 31 Rogue 31 Adventurer 0 Explorer 0 Win Type - Total 0 Types 0/0/0/0/0/0/0/0/0 Lore% 15 Gallery% 33 Achievement% 21 Wizard Run 0 Options --------- Layout 0 ASCII 0 Keyboard 1 Movement Numpad Keybinds 0 Fullscreen 2 Font 18/SmallcapsGlow Map View 76x50 Zoom Use 9% Tactical HUD 1 Map Filters NONE Filters LOW_CONTRAST(5,20,15) Steam 1 RUN: a947b1dd-008b-4392-b270-b40711e181f0